[Event "Fagernes Chess GM-Swiss 2024"]
[Site "Fagernes"]
[Date "2024.03.29"]
[Round "7.10"]
[White "Sidhant, Mohapatra"]
[Black "Mitusov, Semen"]
[Result "1/2-1/2"]
[ECO "C88"]
[WhiteElo "2379"]
[BlackElo "2487"]
[Annotator "TA"]
[PlyCount "84"]
[EventDate "2024.03.25"]
[EventType "swiss"]
[EventCountry "NOR"]
[SourceTitle "playchess.com"]
[Source "ChessBase"]
[SourceQuality "1"]
[TimeControl "40/6000+30:2400+30"]

{[%evp 18,84,22,12,16,14,16,22,32,13,43,10,14,0,0,-8,-14,-13,0,-35,-26,-31,-22,-46,-45,-45,-49,-75,-76,-76,-75,-72,0,-41,0,-90,-22,-32,0,0,16,0,0,-5,0,-26,-8,-7,0,0,0,0,0,-6,0,0,0,0,0,0,0,0,0,0,0,0,7,7,7]} 1. e4 {[%emt 1:02:00]} e5 {[%emt 0:01:30]} 2. Nf3 {[%emt 0:00:00]} Nc6 {[%emt 0:00:06]} 3. Bb5 {[%emt 0:00:00][%cal Bf1b5,Bb5a4,Ba4b3,Bb3a2,Ba2b1,Bb1c2][%mdl 32]} a6 {[%emt 0:00:52]} 4. Ba4 {[%emt 0:00:00]} Nf6 {[%emt 0:00:05]} 5. O-O {[%emt 0:00:00]} b5 {[%emt 0:00:59]} 6. Bb3 {[%emt 0:00:00]} Be7 {[%emt 0:00:18]} 7. d3 {[%emt 0:00:00]} d6 {[%emt 0:01:28]} 8. c3 {[%emt 0:00:00]} O-O {[%emt 0:00:47]} 9. a4 {[%emt 0:00:00]} Bb7 {[%emt 0:01:48]} 10. Re1 {[%emt 0:00:00]} Na5 {[%emt 0:00:30]} 11. Ba2 {[%emt 0:00:00]} c5 {[%emt 0:00:07]} 12. Bg5 {[%emt 0:00:00]} Qd7 {[%emt 0:06:56]} 13. Nbd2 {[%emt 0:00:00]} bxa4 {[%emt 0:03:21]} 14. Bb1 {[%emt 0:00:00]} Bc6 {[%emt 0:04:32]} 15. Bc2 {[%emt 0:00:00][%cal Rc2a4]} Rfb8 {[%emt 0:02:52]} 16. Bxf6 {[%emt 0:00:00]} Bxf6 {[%emt 0:00:15]} 17. Ra2 {[%emt 0:00:00][%cal Rc2a4]} Qe6 {[%emt 0:15:26]} 18. c4 {[%emt 0:00:00]} Qd7 {[%emt 0:09:32]} 19. Bxa4 {[%emt 0:00:00]} Bd8 {[%emt 0:02:50]} 20. Qa1 {[%emt 0:00:00]} Bxa4 {[%emt 0:04:07]} 21. Rxa4 {[%emt 0:00:00]} Nc6 {[%emt 0:01:29]} 22. Nb1 {[%emt 0:00:05][%cal Ob1c3]} Nb4 {[%emt 0:14:34][%cal Ob4c2] [#] White must now prevent ...Nc2!} 23. Rd1 {[%emt 0:01:25]} Nc2 {[%emt 0:00:12]} 24. Qa2 {[%emt 0:00:04]} Nb4 {[%emt 0:00:36]} (24... Qb7 $17 25. Rd2 Qxb2 26. Qxb2 Rxb2) 25. Qa3 {[%emt 0:00:54]} Nc2 {[%emt 0:00:27]} (25... Ra7 $15 26. Nc3 g6) 26. Qa2 $17 {[%emt 0:00:02] [#]} Rb6 {[%emt 0:00:45]} (26... Qb7 $1 $17 27. Nc3 Qxb2 28. Qxb2 Rxb2) 27. b3 {[%emt 0:07:04]} Nd4 {[%emt 0:05:36]} 28. Nxd4 {[%emt 0:02:02]} cxd4 {[%emt 0:02:21]} 29. b4 {[%emt 0:06:49][%cal Ob4b5]} Rab8 {[%emt 0:02:18]} 30. Rxa6 {[%emt 0:00:39]} Rxb4 {[%emt 0:00:08] ...Rb2 would now be deadly.} 31. Ra8 {[%emt 0:00:37]} Rb2 {[%emt 0:04:08]} (31... Rxa8 {simplifies} 32. Qxa8 Kf8 33. Nd2 Ra4) 32. Qa1 {[%emt 0:00:19] White is weak on the dark squares. The position is equal.} Qg4 {[%emt 0:01:10]} 33. Rf1 {[%emt 0:00:41]} g6 {[%emt 0:03:17]} 34. Rxb8 {[%emt 0:00:54]} Rxb8 {[%emt 0:00:02]} 35. Qa2 {[%emt 0:01:46]} Qd7 {[%emt 0:02:40]} 36. Nd2 {[%emt 0:03:05]} Qb7 {[%emt 0:03:46]} 37. Rb1 {[%emt 0:03:34]} Ra8 {[%emt 0:00:06]} 38. Qc2 {[%emt 0:00:34]} Qa7 {[%emt 0:00:07]} 39. g3 {[%emt 0:00:07]} Kg7 {[%emt 0:01:05]} 40. Kg2 {[%emt 0:00:06]} Qa5 {[%emt 0:06:31]} 41. Rb3 {[%emt 0:45:31]} Bg5 {[%emt 0:43:42]} 42. Nf3 {[%emt 0:00:14]} Bf6 {[%emt 0:00:00] Weighted Error Value: White=0.09 (flawless) /Black=0.11 (very precise) .  Mistake:       	---       	Black=3      Inaccurate:     	White=5     	Black=2      OK:         	White=14    	Black=9      Best:        	White=2     	Black=1} 1/2-1/2

[Event "Fagernes Chess GM-Swiss 2024"]
[Site "Fagernes"]
[Date "2024.03.29"]
[Round "7.11"]
[White "Sokolovsky, Yahli"]
[Black "Tsolakidou, Stavroula"]
[Result "1-0"]
[ECO "B30"]
[WhiteElo "2475"]
[BlackElo "2424"]
[Annotator "TA"]
[PlyCount "73"]
[EventDate "2024.03.25"]
[EventType "swiss"]
[EventCountry "NOR"]
[SourceTitle "playchess.com"]
[Source "ChessBase"]
[SourceQuality "1"]
[TimeControl "40/6000+30:2400+30"]

{[%evp 16,73,14,14,15,13,44,44,45,38,50,40,41,33,45,49,43,34,47,52,53,33,64,68,72,66,73,22,60,39,129,147,297,340,344,354,593,607,715,699,656,666,625,604,29972,29973,29988,29989,29989,29990,29990,29991,29991,29992,29992,29992,29995,29996,29997,29998]} 1. e4 {[%emt 0:00:03]} c5 {[%emt 0:02:30][%cal Bc7c5,Bc5d4][%mdl 32]} 2. Nc3 {[%emt 0:00:14]} Nc6 {[%emt 0:00:43]} 3. Bb5 {[%emt 0:00:12]} Nd4 {[%emt 0:00:59]} 4. Nf3 {[%emt 0:00:08]} e6 {[%emt 0:00:43]} 5. O-O {[%emt 0:00:11]} Ne7 {[%emt 0:00:41]} 6. Nxd4 {[%emt 0:02:04]} cxd4 {[%emt 0:00:06]} 7. Ne2 {[%emt 0:00:05]} a6 {[%emt 0:05:37]} 8. Bd3 {[%emt 0:02:51]} Nc6 {[%emt 0:02:32]} 9. c3 {[%emt 0:00:53]} Bc5 {[%emt 0:01:21]} 10. b4 {[%emt 0:00:04]} Bb6 {[%emt 0:01:39]} 11. cxd4 {[%emt 0:05:04]} Nxd4 {[%emt 0:04:51] White is slightly better.} 12. Bb2 {[%emt 0:00:35]} Nxe2+ {[%emt 0:01:18]} 13. Qxe2 {[%emt 0:00:05][%cal Oe2g4] Qg4! is the strong threat.} O-O {[%emt 0:02:21]} 14. Qg4 {[%emt 0:16:57][%csl Gb2][%cal Rg4g7]} f6 {[%emt 0:01:31][%cal Bf7f6,Bf6f5][%mdl 32]} 15. e5 {[%emt 0:00:04]} f5 {[%emt 0:05:21]} 16. Qg3 {[%emt 0:01:57]} Bc7 {[%emt 0:03:21]} 17. a4 {[%emt 0:01:07]} Rf7 {[%emt 0:08:38]} 18. Bc4 {[%emt 0:10:44]} b6 {[%emt 0:10:06]} 19. Qf3 {[%emt 0:11:57]} Rb8 {[%emt 0:06:11]} 20. Qe2 {[%emt 0:03:40] White has more active pieces. The black rooks are passive.} a5 {[%emt 0:03:28]} 21. d4 {[%emt 0:02:05]} ({Better is} 21. b5 $16) 21... Bb7 {[%emt 0:03:43]} 22. Rfd1 {[%emt 0:04:45]} Qh4 {[%emt 0:11:25]} (22... d5 $14 23. Bb5 axb4) 23. d5 $1 $36 {[%emt 0:07:01][%mdl 2048] White is really pushing.} exd5 {[%emt 0:00:32] Loses the game.} (23... Re8 $16 {was worth a try.} 24. Rac1 axb4) 24. Rxd5 $18 {[%emt 0:00:39]} (24. Bxd5 Bxd5 25. Rxd5 Qxb4 $18) 24... Bxd5 {[%emt 0:07:44]} 25. Bxd5 {[%emt 0:00:02]} Qxb4 $2 {[%emt 0:11:01]} (25... axb4 26. Rc1 (26. Bxf7+ Kxf7 27. Qc2 Rc8 $18) 26... Bd8) 26. Rc1 {[%emt 0:07:16]} Bd8 {[%emt 0:01:02]} 27. Bxf7+ {[%emt 0:04:49]} Kxf7 {[%emt 0:00:05][%cal Bg8f7,Bf7g6,Bg6h5,Bh5g5][%mdl 32] [#]} 28. e6+ $1 {[%emt 0:00:09][%mdl 512]} dxe6 {[%emt 0:03:01][%cal Od8f6] And now ...Bf6! would win.} 29. Qe5 {[%emt 0:00:05][%csl LRb8,LRg7]} Bf6 {[%emt 0:06:30] [#]} 30. Rc7+ $1 {[%emt 0:11:45] White mates.} (30. Qxb8 Qxb2 31. Qc7+ Be7 $18) 30... Kg6 {[%emt 0:00:20]} 31. Rxg7+ $1 {[%emt 0:00:09]} Bxg7 {[%emt 0:00:48]} 32. Qxg7+ {[%emt 0:00:05] KQR-KQB} Kh5 {[%emt 0:00:03]} 33. Qxh7+ {[%emt 0:01:38]} Kg5 {[%emt 0:00:05]} 34. Qg7+ {[%emt 0:00:24]} Kh5 {[%emt 0:00:17] [#]} 35. h4 $1 {[%emt 0:02:15][%csl Gh4][%cal Rg7g5][%mdl 512]} Qd2 {[%emt 0:03:06]} (35... Qxh4 36. Qf7+) 36. Qf7+ {[%emt 0:00:30]} Kg4 {[%emt 0:00:18]} 37. Qg6+ {[%emt 0:00:11] Weighted Error Value: White=0.03 (flawless) /Black=0.53.  Mistake:       	White=1     	Black=3      Inaccurate:     	---       	Black=3      OK:         	White=6     	Black=3      Best:        	White=2     	Black=1      Strong:       	White=1     	---} 1-0

[Event "Fagernes Chess GM-Swiss 2024"]
[Site "Fagernes"]
[Date "2024.03.29"]
[Round "7.12"]
[White "Hillarp Persson, Tiger"]
[Black "Narva, Mai"]
[Result "0-1"]
[ECO "E46"]
[WhiteElo "2473"]
[BlackElo "2399"]
[Annotator "TA"]
[PlyCount "70"]
[EventDate "2024.03.25"]
[EventType "swiss"]
[EventCountry "NOR"]
[SourceTitle "playchess.com"]
[Source "ChessBase"]
[SourceQuality "1"]
[TimeControl "40/6000+30:2400+30"]

{[%evp 13,70,-20,-5,-8,0,0,2,-24,-12,-22,-30,-31,-30,-24,-31,-28,-28,-30,-26,-43,55,64,58,56,40,51,47,19,29,16,15,-52,-67,-250,-254,-241,-251,-326,-256,-414,-429,-449,-450,-674,-675,-692,-469,-724,-727,-720,-714,-698,-685,-1073,-1008,-1065,-1002,-1164,-1147]} 1. d4 {[%emt 0:00:50]} Nf6 {[%emt 0:01:41]} 2. c4 {[%emt 0:00:11]} e6 {[%emt 0:00:14]} 3. Nc3 {[%emt 0:00:53]} Bb4 {[%emt 0:00:22]} 4. e3 {[%emt 0:00:46]} O-O {[%emt 0:00:23]} 5. Nge2 {[%emt 0:02:17]} Re8 {[%emt 0:00:31]} 6. a3 {[%emt 0:00:25]} Bf8 {[%emt 0:00:22]} 7. d5 {[%emt 0:00:40]} a5 {[%emt 0:00:43]} 8. g3 {[%emt 0:00:39]} Na6 {[%emt 0:00:23][%cal Bb8a6,Ba6c5,Bc5e4][%mdl 32]} 9. Bg2 {[%emt 0:00:16]} Nc5 {[%emt 0:00:20]} 10. b3 {[%emt 0:00:21] The position is equal.} exd5 {[%emt 0:00:55]} 11. cxd5 {[%emt 0:00:40]} b6 {[%emt 0:00:36]} 12. O-O {[%emt 0:11:38]} Ba6 {[%emt 0:00:35]} 13. Ra2 {[%emt 0:03:05]} Nfe4 {[%emt 0:05:44]} 14. Nxe4 {[%emt 0:00:32]} Nxe4 {[%emt 0:00:27]} 15. Bb2 {[%emt 0:09:46]} Qg5 {[%emt 0:07:45]} 16. h4 {[%emt 0:00:50]} Qf5 {[%emt 0:05:37] [#]} (16... Bxe2 $15 17. hxg5 Bxd1 18. Rxd1 Nxg5) 17. Nf4 $1 $14 {[%emt 0:03:22]} h6 {[%emt 0:11:25]} (17... Bxf1 $2 18. g4 $18) 18. Bh3 {[%emt 0:10:12]} Qh7 {[%emt 0:00:21]} 19. Re1 {[%emt 0:02:52]} Rad8 {[%emt 0:07:29]} 20. Ba1 {[%emt 0:05:54]} Bd6 {[%emt 0:04:43]} 21. Kh2 {[%emt 0:27:48] White wants to play f3.} a4 {[%emt 0:12:27]} 22. b4 {[%emt 0:00:27]} ({White should play} 22. bxa4 $11 Bc4 23. Rb2) 22... Bc4 $15 {[%emt 0:03:20]} 23. Rc2 {[%emt 0:02:27] [#] Now White is beyond hope.} (23. Rb2 $1 $15 g5 24. Nh5) 23... Bb3 $1 $19 {[%emt 0:01:37]} 24. Ree2 {[%emt 0:01:57]} g5 {[%emt 0:16:32]} 25. Qc1 {[%emt 0:00:17]} Bxc2 {[%emt 0:04:37]} 26. Rxc2 $2 {[%emt 0:00:49]} (26. Qxc2 Nxg3 (26... gxf4 $2 27. gxf4 f6 28. f3 $19) 27. Kxg3 gxf4+ 28. Kf3 Qxc2 29. Rxc2) 26... gxf4 {[%emt 0:03:12]} 27. gxf4 {[%emt 0:00:10] Black is clearly winning.} Qg6 {[%emt 0:03:10]} 28. Qb2 {[%emt 0:02:16]} (28. Qg1 $142) 28... f6 {[%emt 0:01:07] ...Kf7 is the strong threat.} ({But not} 28... Kh7 $2 29. Bf5 Rg8 (29... Bxf4+ $2 30. exf4 Rg8 31. Bxg6+ $18) 30. Bxg6+ Rxg6 31. f3 $18) 29. Rc4 {[%emt 0:04:33]} Kh7 {[%emt 0:10:40]} 30. h5 {[%emt 0:08:22]} (30. Qb1 $142 f5 (30... Nxf2 $2 {loses.} 31. Bf5 $18) 31. Qg1) 30... Qxh5 {[%emt 0:00:32]} 31. Rxe4 {[%emt 0:00:09]} Rxe4 {[%emt 0:00:39]} 32. Qxf6 {[%emt 0:00:34]} Re7 {[%emt 0:04:21][%cal Od8g8]} 33. f3 {[%emt 0:01:29]} Rg8 {[%emt 0:01:15][%cal Oe7f7] Threatens to win with ...Rf7!} ({Weaker is} 33... Qxd5 34. Bf5+ Kg8 35. Bg6 $11) 34. Qf5+ {[%emt 0:00:35]} Qg6 {[%emt 0:01:05]} 35. e4 {[%emt 0:01:06] [#]} Bxf4+ $1 {[%emt 0:00:26] Weighted Error Value: White=0.77/Black=0.20 (precise) .  Loses game:     	White=1     	---        Mistake:       	White=3     	Black=1      Inaccurate:     	White=2     	---        OK:         	White=6     	Black=12     Best:        	---       	Black=5      Strong:       	White=1     	Black=1} 0-1

[Event "Fagernes Chess GM-Swiss 2024"]
[Site "Fagernes"]
[Date "2024.03.29"]
[Round "7.13"]
[White "Chasin, Nico"]
[Black "Nandhidhaa, P V"]
[Result "1/2-1/2"]
[ECO "D38"]
[WhiteElo "2447"]
[BlackElo "2305"]
[Annotator "TA"]
[PlyCount "99"]
[EventDate "2024.03.25"]
[EventType "swiss"]
[EventCountry "NOR"]
[SourceTitle "playchess.com"]
[Source "ChessBase"]
[SourceQuality "1"]
[TimeControl "40/6000+30:2400+30"]

{[%evp 16,99,13,4,0,21,30,-19,30,-38,0,-12,-12,-5,0,0,0,0,0,0,16,8,3,0,18,-37,-30,-81,0,0,0,0,0,0,0,-2,21,18,12,11,89,0,0,0,13,13,15,7,187,158,181,66,87,110,88,77,99,60,282,290,267,88,85,87,386,0,0,0,0,0,0,0,0,0,0,0,0,0,0,0,0,0,0,0,0,0]} 1. d4 {[%emt 0:10:27]} Nf6 {[%emt 0:00:34]} 2. c4 {[%emt 0:00:07]} e6 {[%emt 0:00:05]} 3. Nf3 {[%emt 0:00:04]} d5 {[%emt 0:00:04]} 4. Nc3 {[%emt 0:00:04]} Bb4 {[%emt 0:00:14]} 5. Bg5 {[%emt 0:00:16]} h6 {[%emt 0:00:51]} 6. Bxf6 {[%emt 0:00:05]} Qxf6 {[%emt 0:00:14]} 7. Qa4+ {[%emt 0:00:03]} Nc6 {[%emt 0:00:30]} 8. e3 {[%emt 0:00:05]} O-O {[%emt 0:00:58] D38: Queen's Gambit Declined: Ragozin Defence (4 Nf3 Bb4).} 9. Be2 {[%emt 0:00:03]} dxc4 {[%emt 0:03:09]} 10. Bxc4 {[%emt 0:00:56]} Bd7 {[%emt 0:06:08]} 11. Qc2 {[%emt 0:03:20]} (11. O-O $142) 11... Bd6 {[%emt 0:11:35]} (11... e5 $142 12. O-O exd4) 12. O-O-O {[%emt 0:17:33]} (12. a3 $11) 12... Rac8 $146 {[%emt 0:06:54]} ({Predecessor:} 12... a6 13. Ne4 Qe7 14. Kb1 Nb4 15. Qd2 b5 16. Nxd6 Qxd6 17. Be2 Bc6 18. Rc1 Be4+ {1-0 Ibrahimli,M (2155)-Suvorov,A (2272) Wch FIDE Online U18 Europe qual rapid 2020 (4)}) 13. h4 {[%emt 0:01:24]} Nb4 {[%emt 0:12:34]} 14. Qe2 {[%emt 0:08:26]} b5 {[%emt 0:12:48]} 15. Ne5 $1 {[%emt 0:08:34]} (15. Bxb5 Bxb5 16. Nxb5 (16. Qxb5 c5 $17) 16... Nxa2+ 17. Kb1 Nb4 $17) 15... Bxe5 {[%emt 0:09:13]} 16. dxe5 {[%emt 0:00:13]} Qxe5 {[%emt 0:00:35]} 17. Rxd7 {[%emt 0:00:11]} bxc4 {[%emt 0:00:32]} 18. Qxc4 {[%emt 0:00:08]} Rb8 {[%emt 0:02:01]} 19. Rhd1 {[%emt 0:01:58]} Nd5 {[%emt 0:07:50]} 20. Qc5 {[%emt 0:04:23]} (20. Qd4 $11 Qf5 21. Rd2 (21. Qxa7 $2 Nxc3 22. R7d3 Nxd1 $19) 21... Nxc3 22. Qxc3) 20... Qf6 $15 {[%emt 0:02:54]} 21. f4 {[%emt 0:00:21]} (21. Rd2 $11 {keeps the balance.}) 21... Qxh4 {[%emt 0:06:41]} (21... Nb6 $17 22. R7d2 (22. Rxc7 $2 {too greedy.} Nd5 $19) 22... Qxh4) 22. Nxd5 $11 {[%emt 0:01:42]} exd5 {[%emt 0:00:07]} 23. Qxd5 {[%emt 0:00:36]} Qf6 {[%emt 0:01:40]} 24. Rd2 {[%emt 0:00:48]} Rfe8 {[%emt 0:01:24]} 25. Qc5 {[%emt 0:00:01]} Qa6 {[%emt 0:05:43]} 26. b3 {[%emt 0:00:01]} Qf6 {[%emt 0:06:56]} (26... Qb6 {simplifies} 27. Qxb6 axb6 28. Re2 c5) 27. Qd4 {[%emt 0:00:02]} Qxd4 {[%emt 0:04:08]} (27... Qb6 $11) 28. R2xd4 {[%emt 0:00:11]} ({White should try} 28. exd4 $16 {[%cal Od4d5]} Rbc8 29. d5) 28... Rxe3 $11 {[%emt 0:00:15]} 29. Rxc7 {[%emt 0:00:03]} Re2 {[%emt 0:01:20]} 30. Rd2 {[%emt 0:00:52]} Re1+ {[%emt 0:00:38]} 31. Kb2 {[%emt 0:00:34]} Rf1 $2 {[%emt 0:00:37]} (31... Ra8 $11) 32. Rxa7 $18 {[%emt 0:00:15]} Rxf4 {[%emt 0:00:29]} 33. a4 {[%emt 0:00:02]} (33. Rad7 $1 $18) 33... Rfb4 $1 $14 {[%emt 0:02:43]} 34. Rd3 {[%emt 0:00:03]} Rg4 {[%emt 0:02:54] [#]} 35. g3 $1 {[%emt 0:00:05]} h5 {[%emt 0:00:11]} 36. a5 {[%emt 0:00:16]} h4 $2 {[%emt 0:00:38]} (36... Ra4 $1 $14) 37. gxh4 $18 {[%emt 0:00:08]} Rxh4 {[%emt 0:00:02] [#]} 38. a6 $2 {[%emt 0:01:20]} (38. Rad7 $1 $18 {is the precise move to win.}) 38... Rh2+ $16 {[%emt 0:01:19]} 39. Ka3 {[%emt 0:00:41]} Rh6 $2 {[%emt 0:00:32][%mdl 8192]} (39... Rh1 $16) 40. Rd4 $2 {[%emt 0:04:16]} (40. b4 $18) 40... Rhb6 $11 {[%emt 0:01:14]} 41. b4 {[%emt 0:40:09]} Kh7 $1 {[%emt 0:04:41]} 42. Rh4+ {[%emt 0:00:00]} Kg6 {[%emt 0:03:22]} 43. Rg4+ {[%emt 0:00:00]} Kf6 {[%emt 0:04:24]} 44. Rf4+ {[%emt 0:00:00]} Kg6 {[%emt 0:01:31]} 45. Rc4 {[%emt 0:00:00]} f6 {[%emt 0:02:36]} 46. Ka4 {[%emt 0:00:00]} Kh6 {[%emt 0:00:23]} 47. Rh4+ {[%emt 0:00:00]} (47. Ka5 $5 Rb5+ $8 48. Ka4 $11) 47... Kg5 {[%emt 0:01:17]} 48. Rc4 {[%emt 0:00:00]} (48. Rxg7+ $2 {loses.} Kxh4 49. a7 Rxb4+ 50. Ka3 Rb3+ 51. Ka2 Rb2+ 52. Ka3 R8b3+ 53. Ka4 Re3 $19 (53... Rb4+ $2 54. Ka5 $19)) 48... Kh6 {[%emt 0:00:15]} 49. Ka5 {[%emt 0:00:00]} Rb5+ {[%emt 0:00:13]} 50. Ka4 {[%emt 0:00:00]} 1/2-1/2

[Event "Fagernes Chess GM-Swiss 2024"]
[Site "Fagernes"]
[Date "2024.03.29"]
[Round "7.14"]
[White "Willow, Jonah B"]
[Black "Dushyant Sharma"]
[Result "1/2-1/2"]
[ECO "C78"]
[WhiteElo "2446"]
[BlackElo "2331"]
[Annotator "TA"]
[PlyCount "87"]
[EventDate "2024.03.25"]
[EventType "swiss"]
[EventCountry "NOR"]
[SourceTitle "playchess.com"]
[Source "ChessBase"]
[SourceQuality "1"]
[TimeControl "40/6000+30:2400+30"]

{[%evp 12,87,41,42,52,40,34,20,32,23,25,17,17,4,56,60,64,64,61,49,49,42,43,37,167,163,170,182,168,111,100,109,99,62,65,61,76,78,93,88,96,23,52,12,26,31,37,37,36,18,45,0,0,-9,-16,-12,-16,-25,7,8,7,-14,-8,-15,-10,-14,-16,-9,0,0,0,-21,-31,-23,-36,-19,-24,-24]} 1. e4 {[%emt 0:03:59]} e5 {[%emt 0:00:28]} 2. Nf3 {[%emt 0:00:25]} Nc6 {[%emt 0:00:06]} 3. Bb5 {[%emt 0:00:05]} a6 {[%emt 0:00:07]} 4. Ba4 {[%emt 0:00:04]} Nf6 {[%emt 0:00:06]} 5. O-O {[%emt 0:00:06]} b5 {[%emt 0:00:04]} 6. Bb3 {[%emt 0:00:07]} Bc5 {[%emt 0:00:06]} 7. a4 {[%emt 0:00:13]} Rb8 {[%emt 0:00:43]} 8. Nxe5 {[%emt 0:01:12]} Nxe5 {[%emt 0:02:51]} 9. d4 {[%emt 0:00:09]} Bxd4 {[%emt 0:02:34] The position is equal.} 10. Qxd4 {[%emt 0:00:12]} d6 {[%emt 0:00:06]} 11. f4 {[%emt 0:00:06]} Nc6 {[%emt 0:09:02][%cal Be5c6,Bc6e7,Be7f5,Bf5d6][%mdl 32]} 12. Qc3 {[%emt 0:00:27]} Bb7 {[%emt 0:15:05]} ({Black should try} 12... Ne7 $1 $11) 13. axb5 $14 {[%emt 0:01:03]} axb5 {[%emt 0:00:28][%cal Oe8g8]} 14. e5 $36 {[%emt 0:00:04][%mdl 2048] White is pushing.} Ne4 {[%emt 0:07:10]} 15. Qe3 {[%emt 0:01:22]} Ne7 $1 {[%emt 0:01:53]} 16. f5 {[%emt 0:08:08] Threatens to win with f6.} dxe5 {[%emt 0:07:56]} 17. Nc3 {[%emt 0:00:29]} Nf6 {[%emt 0:23:29] [#]} (17... Nxc3 $14 18. bxc3 O-O) 18. Rd1 $1 $18 {[%emt 0:30:13]} (18. Qxe5 $6 O-O $16) (18. Nxb5 Bxg2 19. Kxg2 Rxb5 $11) 18... Qc8 {[%emt 0:03:31]} 19. Qxe5 {[%emt 0:00:24] Ra7 is the strong threat.} ({But not} 19. Nxb5 $6 O-O $14) 19... Qxf5 {[%emt 0:06:58]} 20. Qxf5 {[%emt 0:18:08]} ({White should play} 20. Qxc7 $18 O-O 21. Qxe7 Bxg2 22. Kxg2 Qg4+ 23. Kf2 Qh4+ 24. Kg2 Qg4+ 25. Kf2 Qh4+ 26. Kg2 Qg4+) 20... Nxf5 $16 {[%emt 0:00:38]} 21. Re1+ {[%emt 0:00:03]} Kd7 {[%emt 0:11:05][%cal Be8d7,Bd7c6,Bc6b7,Bb7b8,Bb8c8][%mdl 32]} 22. Bxf7 {[%emt 0:02:25]} Nd6 {[%emt 0:01:01]} 23. Be6+ {[%emt 0:00:22]} Kc6 {[%emt 0:00:13]} 24. Ne2 {[%emt 0:02:24][%cal Bc3e2,Be2d4,Bd4b3,Bb3c5][%mdl 32]} Bc8 {[%emt 0:08:35][%cal Bb7c8,Bc8d7,Bd7c6][%mdl 32] [#] Black is weak on the dark squares} 25. Nd4+ $1 {[%emt 0:01:08]} Kb7 {[%emt 0:00:07]} 26. Ba2 {[%emt 0:06:55] White has more active pieces.} (26. Bf4 $16) 26... Bd7 {[%emt 0:01:11]} 27. Nb3 {[%emt 0:03:04]} Rbe8 {[%emt 0:01:52]} 28. Be3 {[%emt 0:00:52]} Kb8 {[%emt 0:03:25]} 29. Nc5 {[%emt 0:01:14]} Bc6 {[%emt 0:00:17]} 30. Be6 {[%emt 0:02:46]} Nde4 {[%emt 0:03:25]} (30... Re7 {with more complications.} 31. Bf4 Nde4 32. Bf5 Rhe8) 31. Bf7 {[%emt 0:03:42] This pair of bishops is nice.} (31. Na6+ {looks sharper.} Kb7 32. Bf5 Ra8 33. Nb4) 31... Re7 {[%emt 0:00:33] ...Nxc5 would now be deadly.} 32. Na6+ {[%emt 0:00:41]} Kc8 $1 {[%emt 0:00:07]} ({Reject} 32... Kb7 $6 33. Nb4 Rxf7 34. Ra7+ Kc8 35. Nxc6 $16) 33. Bb3 {[%emt 0:01:11]} Rhe8 {[%emt 0:00:49]} 34. Bf4 {[%emt 0:03:17]} Nd5 {[%emt 0:00:34]} 35. Bxd5 {[%emt 0:04:35]} Bxd5 {[%emt 0:00:01]} 36. Ra3 {[%emt 0:00:18]} (36. Ra5 $5) 36... g5 {[%emt 0:01:11]} 37. Bc1 {[%emt 0:01:28]} Bb7 {[%emt 0:00:21]} 38. Nb4 {[%emt 0:00:59]} c5 {[%emt 0:00:34]} 39. Nd3 {[%emt 0:00:10]} Nd6 {[%emt 0:00:26]} 40. Rxe7 {[%emt 0:05:29]} Rxe7 {[%emt 0:00:02]} 41. Bxg5 {[%emt 0:41:46]} Re2 {[%emt 0:04:00][%csl LRc2,LRg2]} 42. Bf4 {[%emt 0:00:00]} Ne4 {[%emt 0:02:43][%cal Oc5c4] And now ...c4! would win.} (42... Rxg2+ 43. Kf1 Rg6 44. Nxc5 $18) 43. Ra1 {[%emt 0:00:00]} Rxc2 {[%emt 0:01:07] Strongly threatening ...c4.} 44. Rc1 {[%emt 0:00:00] Weighted Error Value: White=0.13 (very precise) /Black=0.13 (very precise) .  Mistake:       	White=2     	Black=2      Inaccurate:     	White=3     	Black=3      OK:         	White=13    	Black=14     Best:        	White=4     	Black=3      Strong:       	White=2     	Black=2} 1/2-1/2